[Event "CCC-GM 2022"]
[Site "Ballerup"]
[Date "2022.05.26"]
[Round "2.5"]
[White "Brunello, Sabino"]
[Black "Blomqvist, Erik"]
[Result "1/2-1/2"]
[ECO "E42"]
[WhiteElo "2521"]
[BlackElo "2523"]
[Annotator "TA"]
[PlyCount "100"]
[EventDate "2022.05.25"]
[EventType "tourn"]
[EventCountry "DEN"]
[SourceTitle "playchess.com"]
[Source "ChessBase"]
[SourceQuality "1"]
[TimeControl "5400+30"]

{[%evp 9,100,15,26,2,2,1,5,-8,1,-10,19,19,39,35,64,31,72,81,79,40,41,63,57,57,57,56,71,54,62,0,0,0,0,0,0,-6,-11,-27,-31,-24,-28,-30,-17,-19,-18,-20,-19,-19,-19,-27,-28,-37,-16,-61,-60,-54,-53,-91,-87,-104,-104,-97,-102,-125,-28,-28,-28,-67,-35,-37,-28,-28,-28,-36,-6,-11,-11,-46,-11,-20,-16,-26,-8,-8,-8,-8,-8,-8,-8,-8,-8,-8,-8]} 1. d4 {[%emt 0:05:56]} Nf6 {[%emt 0:00:25]} 2. c4 {[%emt 0:00:29]} e6 {[%emt 0:00:08]} 3. Nc3 {[%emt 0:03:47]} Bb4 {[%emt 0:00:14]} 4. e3 {[%emt 0:01:00]} c5 {[%emt 0:01:10]} 5. Nge2 {[%emt 0:00:48]} d6 {[%emt 0:01:14]} 6. g3 {[%emt 0:06:20] E42: Nimzo-Indian: Rubinstein: 4...c5 5 Ne2.} d5 {[%emt 0:01:11]} 7. dxc5 {[%emt 0:01:16]} dxc4 {[%emt 0:02:09]} 8. Qxd8+ {[%emt 0:12:12]} Kxd8 {[%emt 0:00:06]} 9. Bd2 {[%emt 0:02:36] [#]} Nbd7 $146 {[%emt 0:09:54]} ({Predecessor:} 9... Bxc5 10. Nc1 a6 11. Bxc4 b5 12. Be2 Bb7 13. O-O Ra7 14. Nb3 Bd6 15. f3 Ke7 {1-0 (49) Fier,A (2576)-Sjugirov,S (2663) Chess.com INT 2021}) 10. Nd4 {[%emt 0:06:29]} Ne5 {[%emt 0:18:18] [#]} 11. Ne4 $1 {[%emt 0:03:35]} a5 {[%emt 0:21:31]} (11... Nxe4 12. Bxb4) 12. Bxb4 {[%emt 0:18:34] Black must now prevent Nxf6.} axb4 {[%emt 0:19:40]} 13. Nd6 {[%emt 0:00:17] aiming for f4.} Ke7 {[%emt 0:00:28]} (13... c3 $2 14. f4 cxb2 15. Rb1 $18) 14. Nxc4 {[%emt 0:02:15] White is more active.} ({Much worse is} 14. Bxc4 b6 $11) (14. f4 {is more complex.} Ned7 15. Nxc4 Nxc5 16. Ke2) 14... Nxc4 {[%emt 0:01:22]} 15. Bxc4 {[%emt 0:00:01]} Bd7 {[%emt 0:00:22]} 16. Nc2 $1 {[%emt 0:09:49]} Rhc8 {[%emt 0:00:28][%cal Bh8c8,Bc8c5,Bc5d5][%mdl 32]} 17. Nxb4 {[%emt 0:00:37]} Rxc5 {[%emt 0:00:08]} 18. Bd3 {[%emt 0:08:18]} Bb5 {[%emt 0:06:00]} 19. O-O {[%emt 0:01:26]} (19. Be2 $14) 19... Bxd3 $11 {[%emt 0:10:45]} 20. Nxd3 {[%emt 0:00:09]} Rd5 {[%emt 0:00:26]} 21. Nb4 {[%emt 0:08:06]} Rd2 {[%emt 0:00:04]} 22. Rfd1 {[%emt 0:02:19]} Rxb2 {[%emt 0:00:44]} 23. Rab1 {[%emt 0:00:31]} Rxb1 {[%emt 0:00:48]} 24. Rxb1 {[%emt 0:00:01][%mdl 4096] Endgame KRN-KRN} Ne4 {[%emt 0:00:20]} 25. Rc1 {[%emt 0:01:29]} Kd6 {[%emt 0:00:57]} 26. f3 {[%emt 0:00:53]} Nc5 {[%emt 0:01:36]} 27. Rc3 {[%emt 0:01:15] Prevents Ra3.} f5 {[%emt 0:01:18]} 28. Kf2 {[%emt 0:01:06]} g5 {[%emt 0:00:08]} 29. h3 {[%emt 0:01:34]} h5 {[%emt 0:00:07]} 30. Ke2 {[%emt 0:00:30]} b5 {[%emt 0:00:59]} 31. a3 {[%emt 0:01:17]} g4 $1 {[%emt 0:00:52]} 32. hxg4 {[%emt 0:00:53]} hxg4 {[%emt 0:00:03]} 33. fxg4 {[%emt 0:00:25]} fxg4 {[%emt 0:00:05]} 34. Nd3 {[%emt 0:00:39]} Ne4 {[%emt 0:00:16][%csl LRc3,LRg3]} 35. Rb3 {[%emt 0:00:09]} Nxg3+ {[%emt 0:02:35]} 36. Ke1 {[%emt 0:00:16]} Ne4 {[%emt 0:00:41]} (36... Ra4 $17 37. Kf2 Nf5) 37. Rxb5 {[%emt 0:00:54]} Rxa3 {[%emt 0:00:06]} 38. Rb6+ {[%emt 0:00:38]} Ke7 {[%emt 0:00:38]} (38... Kd5 $5 {[%cal Ra3d3]} 39. Ke2 Ng3+ 40. Kd2 Ne4+ 41. Ke2 Ng3+ 42. Kd2 Nf1+ 43. Ke2 Ng3+ $17) 39. Rb4 {[%emt 0:00:32]} Ra1+ {[%emt 0:01:11]} 40. Ke2 {[%emt 0:00:02]} Ra2+ {[%emt 0:00:09]} 41. Kf1 {[%emt 0:01:03]} Nf6 {[%emt 0:00:45]} 42. Nf4 {[%emt 0:00:32]} g3 {[%emt 0:00:35][%cal Bg4g3,Bg3g2][%mdl 32]} 43. Rb7+ {[%emt 0:00:30]} Nd7 {[%emt 0:00:23]} (43... Kd6 $5 {[%cal Rf6g4]} 44. Rb6+ Ke5 45. Rxe6+ Kf5 $15) 44. Nh5 {[%emt 0:00:20]} g2+ {[%emt 0:00:26]} 45. Kg1 {[%emt 0:00:01]} e5 {[%emt 0:00:40]} 46. Ng3 {[%emt 0:00:27] The position is equal.} Ke6 {[%emt 0:00:14]} 47. Ne4 {[%emt 0:00:12]} Re2 {[%emt 0:00:48]} 48. Rb3 {[%emt 0:00:31]} Kd5 {[%emt 0:00:29]} 49. Nc3+ {[%emt 0:00:14]} Kc4 {[%emt 0:00:03]} 50. Nxe2 {[%emt 0:00:07]} Kxb3 {[%emt 0:00:04] Weighted Error Value: White=0.10 (very precise) /Black=0.11 (very precise)} 1/2-1/2

[Event "CCC-GM 2022"]
[Site "Ballerup"]
[Date "2022.05.26"]
[Round "3.1"]
[White "Stefansson, Vignir Vatnar"]
[Black "Komarov, Dimitri"]
[Result "0-1"]
[ECO "D11"]
[WhiteElo "2496"]
[BlackElo "2493"]
[Annotator "TA"]
[PlyCount "68"]
[EventDate "2022.05.25"]
[EventType "tourn"]
[EventCountry "DEN"]
[SourceTitle "playchess.com"]
[Source "ChessBase"]
[SourceQuality "1"]
[TimeControl "5400+30"]

{[%evp 13,68,0,18,8,22,-17,0,0,4,-10,0,0,0,0,0,0,0,0,0,0,0,0,0,0,0,-36,-35,-144,-139,-133,-96,-202,-201,-197,-198,-197,-157,-229,-231,-241,-241,-241,-250,-263,-264,-270,-271,-268,-277,-284,-273,-289,-283,-304,-293,-358,-342]} 1. d4 {[%emt 0:00:06]} d5 {[%emt 0:00:07]} 2. c4 {[%emt 0:00:06]} c6 {[%emt 0:00:03]} 3. Nf3 {[%emt 0:01:32]} Nf6 {[%emt 0:00:09]} 4. g3 {[%emt 0:00:02]} dxc4 {[%emt 0:04:21]} 5. Bg2 {[%emt 0:00:05]} g6 {[%emt 0:00:05]} 6. O-O {[%emt 0:01:07]} Bg7 {[%emt 0:00:06]} 7. a4 {[%emt 0:01:53]} O-O {[%emt 0:04:25][%cal Oc6c5]} 8. Na3 $1 {[%emt 0:00:05] D73: Fianchetto Grünfeld: 5 Nf3 .} Na6 {[%emt 0:03:20]} 9. Ne5 {[%emt 0:05:22]} c5 {[%emt 0:10:46]} 10. dxc5 {[%emt 0:12:34] c6 is the strong threat. The position is equal.} Nxc5 {[%emt 0:00:15]} 11. Naxc4 {[%emt 0:00:20]} Be6 {[%emt 0:12:48] [#]} 12. Be3 $146 {[%emt 0:02:06]} ({Predecessor:} 12. b4 Nce4 {½-½ (12) Horvath,P (2390)-Horvath,J (2520) Budapest 1994}) 12... Rc8 {[%emt 0:04:01]} 13. b4 {[%emt 0:06:39]} Ncd7 {[%emt 0:15:36]} 14. Nxd7 {[%emt 0:07:57]} Qxd7 {[%emt 0:00:07]} 15. Qxd7 {[%emt 0:05:51]} Nxd7 {[%emt 0:00:10]} 16. Na5 $1 {[%emt 0:00:03][%cal Og2b7]} Bxa1 {[%emt 0:00:22]} 17. Rxa1 {[%emt 0:00:05]} Nb6 {[%emt 0:05:30]} 18. Bxb7 {[%emt 0:03:46]} Rc7 {[%emt 0:00:11]} 19. Bf4 {[%emt 0:16:09] A strong pair of Bishops.} (19. b5 $5 {[%cal Re3f4]}) 19... Rd7 $36 {[%emt 0:00:24][%mdl 2048] Black has good play.} 20. Be4 {[%emt 0:08:04]} (20. Kf1 $15) 20... Rd4 $17 {[%emt 0:05:41][%csl LRb4,LRe4]} 21. Bd3 {[%emt 0:02:15]} Bd7 {[%emt 0:01:33] Prevents Nc6.} 22. Bb5 {[%emt 0:01:48]} (22. Bd2 $17) 22... Rxb4 $19 {[%emt 0:04:14]} 23. Bxd7 {[%emt 0:07:34]} Nxd7 {[%emt 0:00:04]} 24. Nc6 {[%emt 0:00:05]} Re4 {[%emt 0:00:13]} 25. a5 {[%emt 0:02:43]} (25. Kf1 $17) 25... a6 {[%emt 0:03:14]} ({And not} 25... Rxe2 26. Nxa7 Rc2 27. a6) 26. Ra2 {[%emt 0:00:02]} Rc8 {[%emt 0:07:11]} 27. f3 {[%emt 0:00:02]} Re6 {[%emt 0:00:06]} ({Weaker is} 27... Rxc6 28. fxe4 Kf8 29. Rb2 $15) 28. Nb4 {[%emt 0:00:09]} f6 {[%emt 0:03:59] [#] And now ...g5 would win.} 29. Kf2 {[%emt 0:00:02]} g5 {[%emt 0:00:38]} 30. Be3 {[%emt 0:00:11]} Rd6 {[%emt 0:02:08]} 31. Nd3 {[%emt 0:01:13]} Rc4 {[%emt 0:00:46]} 32. Rb2 {[%emt 0:00:06]} Kf7 {[%emt 0:02:41]} 33. h3 {[%emt 0:00:23]} Rd5 {[%emt 0:00:49]} 34. Rb7 {[%emt 0:00:51]} Ne5 {[%emt 0:00:46] Weighted Error Value: White=0.21 (precise) /Black=0.04 (flawless)} 0-1

[Event "CCC-GM 2022"]
[Site "Ballerup"]
[Date "2022.05.26"]
[Round "3.2"]
[White "Nielsen, Viktor Haarmark"]
[Black "Brunello, Sabino"]
[Result "1-0"]
[ECO "A63"]
[WhiteElo "2323"]
[BlackElo "2521"]
[Annotator "TA"]
[PlyCount "71"]
[EventDate "2022.05.25"]
[EventType "tourn"]
[EventCountry "DEN"]
[SourceTitle "playchess.com"]
[Source "ChessBase"]
[SourceQuality "1"]
[TimeControl "5400+30"]

{[%evp 19,71,17,25,32,24,21,15,27,52,45,50,20,38,30,48,21,86,91,91,104,100,106,99,90,94,105,228,231,277,287,357,351,351,335,334,214,313,320,304,295,809,778,1582,1500,2585,2133,29991,29992,29992,29993,29993,29994,29997,29998]} 1. d4 Nf6 {[%emt 0:01:06]} 2. c4 {[%emt 0:00:18]} g6 {[%emt 0:00:44]} 3. g3 {[%emt 0:01:00]} Bg7 {[%emt 0:00:55]} 4. Bg2 {[%emt 0:00:09]} c5 {[%emt 0:01:02]} 5. d5 {[%emt 0:01:35]} O-O {[%emt 0:01:15]} 6. Nc3 {[%emt 0:00:34]} d6 {[%emt 0:00:21]} 7. Nf3 {[%emt 0:00:48]} e6 {[%emt 0:00:51]} 8. O-O {[%emt 0:00:11]} exd5 {[%emt 0:01:01]} 9. cxd5 {[%emt 0:00:10]} Nbd7 {[%emt 0:02:42]} 10. Bf4 {[%emt 0:02:04]} Qe7 {[%emt 0:01:31]} 11. a4 {[%emt 0:03:50] A62: Modern Benoni: Fianchetto Variation without early ...Nbd7.} Ng4 {[%emt 0:04:03]} 12. Bg5 {[%emt 0:14:21]} f6 {[%emt 0:05:33]} 13. Bd2 {[%emt 0:01:38] [#] The position is equal.} Rb8 $146 {[%emt 0:05:20]} ({Predecessor:} 13... Nde5 14. h3 Nxf3+ 15. exf3 Ne5 16. Re1 Qd8 17. Bf1 g5 18. f4 Ng6 19. Ne2 Bd7 {1-0 (59) Goryachkina,A (2505)-Alekseev,E (2627) Yaroslavl 2018}) 14. Rb1 {[%emt 0:05:00]} a6 {[%emt 0:19:31]} 15. b4 {[%emt 0:01:40]} f5 {[%emt 0:03:16]} 16. Qc2 {[%emt 0:05:38]} Re8 {[%emt 0:03:51]} 17. Rfe1 {[%emt 0:02:24]} Qf6 {[%emt 0:11:28]} (17... cxb4 $11 {remains equal.} 18. Rxb4 Nc5) 18. a5 $16 {[%emt 0:04:32]} b5 {[%emt 0:05:24] Against Na4} 19. axb6 $1 {[%emt 0:00:26]} cxb4 {[%emt 0:00:08]} 20. Rxb4 {[%emt 0:01:34]} Rxb6 {[%emt 0:00:10]} 21. Na4 {[%emt 0:20:01]} Rxb4 {[%emt 0:09:30]} 22. Bxb4 {[%emt 0:00:10]} Nf8 {[%emt 0:00:09] [#] Black cannot hold the game after this.} (22... Qe7 $16) 23. Nb6 $1 $18 {[%emt 0:03:52]} Re4 {[%emt 0:13:22]} 24. Ba3 {[%emt 0:03:17]} (24. Qxc8 Rxb4 25. Nc4 (25. Qxa6 Qc3 $14) 25... Qc3 26. Nxd6 Rb6 $16) 24... Bd7 {[%emt 0:02:02]} 25. Nxd7 {[%emt 0:01:14]} Nxd7 {[%emt 0:00:01]} 26. Qc8+ {[%emt 0:00:21]} Nf8 {[%emt 0:00:02]} 27. Qxa6 {[%emt 0:00:25]} Qc3 {[%emt 0:02:14]} (27... Re8 $142 28. e3 (28. Qxd6 Qxd6 29. Bxd6 Rd8 $18) (28. Bxd6 Rd8 $17) 28... Nd7 29. Qxd6 Qxd6 30. Bxd6 Rc8) 28. Rc1 {[%emt 0:04:13]} ({Don't play} 28. Qxd6 $6 Ra4 $18) 28... Qb3 {[%emt 0:01:37]} 29. Qxd6 {[%emt 0:09:01]} ({Not} 29. Bxd6 Nxf2 30. Qa3 Qxa3 31. Bxa3 Ng4 $16) 29... Rxe2 $2 {[%emt 0:04:20] [#]} (29... Re8 30. Rf1 Qb8) 30. Nd4 $1 {[%emt 0:06:09][%mdl 512]} Qxa3 {[%emt 0:01:18]} (30... Qa2 31. Nxe2) 31. Qxa3 {[%emt 0:00:06]} Bxd4 {[%emt 0:00:09]} 32. Rc8 {[%emt 0:04:53][%csl Gc8][%cal Ra3f8]} Bxf2+ {[%emt 0:00:31]} 33. Kh1 {[%emt 0:00:06][%csl Gc8][%cal Ra3f8] White mates.} Re1+ {[%emt 0:00:23]} 34. Bf1 {[%emt 0:00:05]} Rxf1+ {[%emt 0:00:21]} 35. Kg2 {[%emt 0:00:05][%csl Gc8][%cal Ra3f8]} Ne3+ {[%emt 0:00:09]} 36. Kh3 {[%emt 0:00:26] Weighted Error Value: White=0.10 (very precise) /Black=0.49} 1-0

[Event "CCC-GM 2022"]
[Site "Ballerup"]
[Date "2022.05.26"]
[Round "3.3"]
[White "Olsen, Filip Boe"]
[Black "Brondt, Nicolai Kvist"]
[Result "1/2-1/2"]
[ECO "D45"]
[WhiteElo "2407"]
[BlackElo "2241"]
[Annotator "TA"]
[PlyCount "103"]
[EventDate "2022.05.25"]
[EventType "tourn"]
[EventCountry "DEN"]
[SourceTitle "playchess.com"]
[Source "ChessBase"]
[SourceQuality "1"]
[TimeControl "5400+30"]

{[%evp 13,103,17,12,12,12,2,14,7,0,0,21,7,0,0,0,8,8,0,6,17,29,9,6,5,0,0,11,7,9,4,7,0,0,0,0,0,0,0,0,0,0,0,4,0,0,0,0,0,18,0,41,0,0,0,150,132,139,135,134,110,154,35,33,0,8,0,0,0,0,0,0,0,0,0,0,0,0,-14,-15,-17,0,0,0,0,0,-19,0,0,0,-24,0,0]} 1. d4 {[%emt 0:00:05] ChessBase II} Nf6 {[%emt 0:00:09]} 2. c4 {[%emt 0:00:06]} c6 {[%emt 0:00:03]} 3. Nf3 {[%emt 0:00:13]} d5 {[%emt 0:00:05]} 4. e3 {[%emt 0:00:07]} a6 {[%emt 0:00:03]} 5. Nc3 {[%emt 0:01:38]} e6 {[%emt 0:00:10]} 6. Qc2 {[%emt 0:06:04]} c5 {[%emt 0:03:53]} 7. cxd5 {[%emt 0:02:21]} exd5 {[%emt 0:00:18]} 8. dxc5 {[%emt 0:09:58] D45: Semi-Slav: 5 e3.} Bxc5 {[%emt 0:00:30]} 9. Bd3 {[%emt 0:00:14]} Nc6 {[%emt 0:01:55]} 10. O-O {[%emt 0:00:34] [#]} Bg4 $146 {[%emt 0:04:54]} ({Predecessor:} 10... Qe7 11. a3 Bg4 12. Nd4 Ne5 13. Bf5 O-O 14. h3 Bh5 15. b4 Bd6 16. Qb3 Rad8 {½-½ (23) Amoyal,P (2226)-Payen,A (2363) Aix les Bains 2003 EXT 2004 [ChessBase II]}) 11. Ne2 {[%emt 0:03:49]} Qe7 {[%emt 0:03:09]} 12. Nfd4 {[%emt 0:01:43] [#] aiming for Nxc6.} Nb4 {[%emt 0:03:33]} 13. Qb3 {[%emt 0:03:38]} Nxd3 {[%emt 0:00:20]} 14. Qxd3 {[%emt 0:00:02]} O-O {[%emt 0:02:12]} 15. b3 {[%emt 0:03:32]} Bd6 {[%emt 0:14:58]} 16. Bb2 {[%emt 0:04:54]} Qe4 {[%emt 0:07:38]} (16... Qe5 {looks sharper.} 17. Ng3 Ne4 18. f4 Qe8) 17. Qxe4 {[%emt 0:22:04]} (17. Qd2 {is more complex.} Qe5 18. Nf3 Qh5 19. Bxf6 Bxf3 20. Ng3) 17... dxe4 {[%emt 0:00:20]} 18. h3 {[%emt 0:00:14]} Bd7 {[%emt 0:01:59]} 19. Rfd1 {[%emt 0:00:26][%cal Od4f5]} Be5 {[%emt 0:04:47]} 20. Rab1 {[%emt 0:01:48][%cal Od4f5]} Rfe8 {[%emt 0:03:33]} 21. Rd2 {[%emt 0:05:04]} Rac8 {[%emt 0:06:24]} 22. Nc2 {[%emt 0:02:29]} Bb5 {[%emt 0:03:04]} 23. Bxe5 {[%emt 0:00:41]} Rxe5 {[%emt 0:00:02]} 24. Ncd4 {[%emt 0:00:28]} Bxe2 {[%emt 0:03:35]} 25. Nxe2 {[%emt 0:00:54]} Kf8 {[%emt 0:01:09]} 26. Kf1 {[%emt 0:02:16]} Ke7 {[%emt 0:01:55]} 27. Rbd1 {[%emt 0:02:32]} Rec5 {[%emt 0:03:04]} 28. Ke1 {[%emt 0:02:14]} Rc2 {[%emt 0:04:44]} 29. a4 {[%emt 0:04:56]} Rxd2 {[%emt 0:00:15]} 30. Rxd2 $11 {[%emt 0:00:11][%mdl 4096] Endgame KRN-KRN} Ne8 {[%emt 0:06:09]} 31. Rd4 {[%emt 0:03:03]} f5 {[%emt 0:01:07]} 32. Kd2 {[%emt 0:01:52]} g6 {[%emt 0:05:11]} 33. g4 {[%emt 0:03:05]} Rd8 {[%emt 0:04:31]} (33... Rc5 $11) 34. gxf5 {[%emt 0:01:55]} gxf5 {[%emt 0:01:16]} 35. Rxd8 {[%emt 0:00:11]} Kxd8 $16 {[%emt 0:00:01] KN-KN} 36. Kc3 {[%emt 0:00:11] And now Kd4 would win.} Kc7 {[%emt 0:01:44] [#]} 37. Kd4 {[%emt 0:00:19]} ({Better is} 37. Kc4 $1 $16 {[%cal Rc4d5]}) 37... Kd6 $14 {[%emt 0:00:35]} 38. b4 {[%emt 0:01:39]} Nc7 {[%emt 0:02:23]} 39. Nf4 {[%emt 0:00:39]} b6 {[%emt 0:01:06]} 40. Kc4 {[%emt 0:01:22]} b5+ {[%emt 0:03:53]} 41. axb5 {[%emt 0:01:08]} axb5+ {[%emt 0:01:02]} 42. Kd4 {[%emt 0:00:01]} Na6 {[%emt 0:00:46]} 43. Nd5 {[%emt 0:05:24]} h6 {[%emt 0:00:14]} 44. h4 {[%emt 0:00:52]} Nb8 {[%emt 0:00:29] ( -> ...Nc6+)} 45. Nf6 {[%emt 0:01:58]} Nc6+ {[%emt 0:00:29]} 46. Kc3 {[%emt 0:00:04]} Ke6 {[%emt 0:01:01]} 47. Ne8 {[%emt 0:00:12] Hoping for Nc7+.} Ke5 {[%emt 0:01:20]} 48. Nc7 {[%emt 0:01:06]} Na7 {[%emt 0:00:42]} 49. Na6 {[%emt 0:02:14]} Nc6 {[%emt 0:00:34]} 50. Nc7 {[%emt 0:00:08]} Na7 {[%emt 0:00:05]} 51. Na6 {[%emt 0:00:22]} Nc6 {[%emt 0:00:43]} 52. Nc7 {Weighted Error Value: White=0.11 (very precise) /Black=0.13 (very precise)} 1/2-1/2

[Event "CCC-GM 2022"]
[Site "Ballerup"]
[Date "2022.05.26"]
[Round "3.4"]
[White "Blomqvist, Erik"]
[Black "Haubro, Martin"]
[Result "1-0"]
[ECO "A06"]
[WhiteElo "2523"]
[BlackElo "2428"]
[Annotator "TA"]
[PlyCount "75"]
[EventDate "2022.05.25"]
[EventType "tourn"]
[EventCountry "DEN"]
[SourceTitle "playchess.com"]
[Source "ChessBase"]
[SourceQuality "1"]
[TimeControl "5400+30"]

{[%evp 9,75,21,29,18,25,20,12,11,35,25,38,38,72,72,84,76,77,62,86,66,140,131,149,125,133,132,125,114,172,136,127,122,185,172,200,198,199,189,129,125,270,263,264,228,253,248,312,300,298,238,220,233,276,306,286,286,399,404,436,416,514,502,768,754,694,726,687,692]} 1. Nf3 {[%emt 0:00:05]} d5 {[%emt 0:00:10]} 2. g3 {[%emt 0:00:07]} Nd7 {[%emt 0:00:12]} 3. d4 {[%emt 0:00:44]} Nb6 {[%emt 0:00:11]} 4. a4 {[%emt 0:00:14]} a5 {[%emt 0:00:05]} 5. b3 {[%emt 0:00:11]} Bf5 {[%emt 0:07:21]} 6. Ba3 {[%emt 0:00:15] D02: 1 d4 d5 2 Nf3 sidelines, including 2...Nf6 3 g3 and 2...Nf6 3 Bf4.} e6 {[%emt 0:10:42]} 7. Bxf8 {[%emt 0:00:17]} Kxf8 {[%emt 0:00:04]} 8. Bg2 {[%emt 0:00:22] [#] The position is equal.} Ne7 $146 {[%emt 0:19:40]} ({Predecessor:} 8... Nf6 9. O-O Ke7 10. Nh4 Re8 11. Nxf5+ exf5 12. Qd3 g6 13. c4 Kf8 14. Nc3 c6 {½-½ (42) Predojevic,B (2616)-Mosesov,D (2290) Zadar 2019}) 9. Nbd2 {[%emt 0:00:59]} f6 {[%emt 0:01:11]} 10. O-O {[%emt 0:01:38]} Kf7 {[%emt 0:06:21]} 11. Re1 {[%emt 0:02:17]} Re8 {[%emt 0:00:29]} 12. e4 {[%emt 0:00:36]} dxe4 {[%emt 0:03:43]} 13. Nxe4 {[%emt 0:00:09]} Bxe4 {[%emt 0:00:12]} 14. Rxe4 {[%emt 0:00:09]} Ng6 {[%emt 0:00:13]} ({Black should try} 14... Nbd5 $14) 15. c4 $16 {[%emt 0:03:53][%cal Bc2c4,Bc4c5][%mdl 32]} Nd7 {[%emt 0:13:27]} 16. h4 {[%emt 0:06:25]} c6 {[%emt 0:01:51]} 17. Qe2 {[%emt 0:03:54]} Ngf8 {[%emt 0:06:14]} 18. Re1 {[%emt 0:02:09]} Qc7 {[%emt 0:00:28]} (18... f5 $16 {was called for.} 19. Re3 Nf6) 19. c5 {[%emt 0:07:36]} Re7 {[%emt 0:01:54]} 20. Nd2 {[%emt 0:04:24]} b6 {[%emt 0:00:14]} (20... f5 $16 {is a better defense.}) 21. Bh3 $18 {[%emt 0:03:14][%cal Rh3e6]} Rae8 {[%emt 0:00:48]} 22. Nc4 {[%emt 0:00:42] [#] Black must now prevent Nd6+.} bxc5 {[%emt 0:05:37]} 23. dxc5 {[%emt 0:00:21]} Kg8 {[%emt 0:01:35]} 24. Nd6 {[%emt 0:01:31] White is much more active. The black rooks are badly placed.} Nxc5 {[%emt 0:04:47] Loses the game.} (24... Rb8 $16) 25. Nxe8 {[%emt 0:01:01]} Rxe8 {[%emt 0:00:05]} 26. Qh5 {[%emt 0:04:27]} Qe7 {[%emt 0:02:58]} 27. Rc4 {[%emt 0:01:23]} Nd3 {[%emt 0:03:35]} 28. Re3 {[%emt 0:00:47][%cal Be1e3,Be3c3,Bc3c6,Bc6a6,Ba6a5][%mdl 32]} (28. Qxa5 Nxe1 29. Qxe1 c5 $16) 28... Ne5 {[%emt 0:00:13]} 29. Rce4 {[%emt 0:07:33] Hoping for f4.} g6 {[%emt 0:04:10]} 30. Qe2 {[%emt 0:00:50] And now f4 would win.} Qa7 {[%emt 0:00:10]} 31. Kh2 {[%emt 0:02:11] Threatens to win with f4.} Kg7 {[%emt 0:01:10]} 32. Rc3 {[%emt 0:03:39]} ({Much less strong is} 32. f4 $6 Ned7 33. Rc4 (33. Bxe6 Nc5 $16) 33... Qb6 $18) 32... Nf7 {[%emt 0:00:28]} 33. Rxc6 {[%emt 0:00:57]} e5 {[%emt 0:00:06]} 34. Ra6 {[%emt 0:04:24]} ({Not} 34. Qf3 f5 $18) 34... Qc7 {[%emt 0:02:05]} 35. Rc4 {[%emt 0:00:40] White is clearly winning.} Qd8 {[%emt 0:02:12]} (35... Qb7 $142) 36. Rc8 {[%emt 0:02:58]} Qe7 {[%emt 0:00:27]} 37. Rxe8 {[%emt 0:00:18]} Qxe8 {[%emt 0:00:03]} 38. Rxa5 {[%emt 0:00:21] Weighted Error Value: White=0.07 (flawless) /Black=0.27 (precise)} 1-0